[Event "Hungarian Youth-ch II 2024"]
[Site "Szolnok"]
[Date "2024.04.04"]
[Round "6.2"]
[White "Biro, Beata"]
[Black "Kincses, Emma"]
[Result "1/2-1/2"]
[ECO "B23"]
[WhiteElo "1760"]
[BlackElo "1678"]
[Annotator "NA RC"]
[PlyCount "69"]
[EventDate "2024.03.31"]
[EventType "swiss"]
[EventCountry "HUN"]
[SourceTitle "playchess.com"]
[Source "ChessBase"]
[SourceQuality "1"]
[TimeControl "5400+30"]

1. e4 {[%emt 0:00:03]} c5 {[%emt 0:00:05]} 2. Nc3 {[%emt 0:00:09]} g6 {[%emt 0:00:08]} 3. d4 {[%emt 0:00:11]} b6 {[%emt 0:04:30]} 4. Be3 {[%emt 0:01:39]} d6 {[%emt 0:01:13]} 5. dxc5 {[%emt 0:02:14]} bxc5 {[%emt 0:00:53]} 6. Qd5 {[%emt 0:02:24]} Bd7 {[%emt 0:10:56]} 7. Qxa8 {[%emt 0:02:57]} Qb6 {[%emt 0:01:27]} 8. Qd5 {[%emt 0:00:19]} Bg7 {[%emt 0:03:17]} 9. Qb3 {[%emt 0:01:16]} Qc7 {[%emt 0:00:53]} 10. Bc4 {[%emt 0:03:04]} e6 {[%emt 0:01:33]} 11. O-O-O {[%emt 0:01:52]} Ne7 {[%emt 0:00:51]} 12. Nb5 {[%emt 0:00:19]} Bxb5 {[%emt 0:03:55]} 13. Bxb5+ {[%emt 0:00:13]} Nbc6 {[%emt 0:01:00]} 14. Qd3 {[%emt 0:04:08]} O-O {[%emt 0:06:56]} 15. Bxc6 {[%emt 0:02:11]} Nxc6 {[%emt 0:04:12]} 16. c3 {[%emt 0:03:29]} Rb8 {[%emt 0:07:49]} 17. Ne2 {[%emt 0:04:05]} Qb7 {[%emt 0:03:00]} 18. Qc2 {[%emt 0:00:55]} Ne5 {[%emt 0:02:21]} 19. Nf4 {[%emt 0:06:19]} a5 {[%emt 0:08:07]} 20. Nd3 {[%emt 0:03:49]} Ng4 {[%emt 0:05:04]} 21. Bf4 {[%emt 0:04:51]} c4 {[%emt 0:05:11]} 22. Nc5 {[%emt 0:09:20]} Qa7 {[%emt 0:02:56]} 23. Bxd6 {[%emt 0:00:49]} Bh6+ {[%emt 0:01:19]} 24. Kb1 {[%emt 0:00:27]} Rc8 {[%emt 0:01:34]} 25. h3 {[%emt 0:00:35]} Nf6 {[%emt 0:00:09]} 26. e5 {[%emt 0:00:19]} Ne8 {[%emt 0:00:15]} 27. Ne4 {[%emt 0:00:42]} Bg7 {[%emt 0:01:10]} 28. h4 {[%emt 0:02:52]} a4 {[%emt 0:01:22]} 29. a3 {[%emt 0:02:03]} Nc7 {[%emt 0:01:59]} 30. Bxc7 {[%emt 0:01:11]} Qxc7 {[%emt 0:00:18]} 31. f4 {[%emt 0:00:56]} Rb8 {[%emt 0:00:59]} 32. Qxa4 {[%emt 0:01:10]} Qb7 {[%emt 0:00:28]} 33. Qc2 {[%emt 0:00:03]} Qa6 {[%emt 0:00:39]} 34. h5 {[%emt 0:02:30]} Qxa3 {[%emt 0:00:43]} 35. Rd8+ {[%emt 0:00:27]} 1/2-1/2

[Event "Hungarian Youth-ch II 2024"]
[Site "Szolnok"]
[Date "2024.04.04"]
[Round "6.3"]
[White "Vadkerti, Bori"]
[Black "Hangyal, Dora"]
[Result "0-1"]
[ECO "D00"]
[WhiteElo "1657"]
[BlackElo "1704"]
[Annotator "NA RC"]
[PlyCount "116"]
[EventDate "2024.03.31"]
[EventType "swiss"]
[EventCountry "HUN"]
[SourceTitle "playchess.com"]
[Source "ChessBase"]
[SourceQuality "1"]
[TimeControl "5400+30"]

1. d4 {[%emt 0:00:03]} d5 {[%emt 0:00:04]} 2. Bf4 {[%emt 0:00:12]} Nf6 {[%emt 0:00:10]} 3. e3 {[%emt 0:00:34]} e6 {[%emt 0:00:05]} 4. Nd2 {[%emt 0:00:18]} c5 {[%emt 0:00:30]} 5. c3 {[%emt 0:00:27]} Bd6 {[%emt 0:00:30]} 6. Bg3 {[%emt 0:00:23]} Bxg3 {[%emt 0:00:46]} 7. hxg3 {[%emt 0:00:42]} c4 {[%emt 0:00:32]} 8. Ngf3 {[%emt 0:03:06]} Nc6 {[%emt 0:01:27]} 9. b3 {[%emt 0:08:56]} cxb3 {[%emt 0:03:10]} 10. axb3 {[%emt 0:00:36]} Rb8 {[%emt 0:06:28]} 11. Bb5 {[%emt 0:05:33]} Qb6 {[%emt 0:00:20]} 12. c4 {[%emt 0:01:14]} a6 {[%emt 0:00:21]} 13. Bxc6+ {[%emt 0:00:42]} bxc6 {[%emt 0:00:32]} 14. Ne5 {[%emt 0:02:22]} Nd7 {[%emt 0:00:25]} 15. Nxd7 {[%emt 0:00:56]} Bxd7 {[%emt 0:00:08]} 16. Qc2 {[%emt 0:01:04]} h6 {[%emt 0:02:24]} 17. Qa2 {[%emt 0:01:10]} Ra8 {[%emt 0:03:58]} 18. Qa5 {[%emt 0:04:16]} Qxa5 {[%emt 0:05:17]} 19. Rxa5 {[%emt 0:00:08]} O-O {[%emt 0:00:21]} 20. O-O {[%emt 0:00:11]} Ra7 {[%emt 0:00:17]} 21. Rfa1 {[%emt 0:00:30]} Rfa8 {[%emt 0:00:14]} 22. e4 {[%emt 0:02:02]} dxc4 {[%emt 0:09:13]} 23. bxc4 {[%emt 0:00:34]} Bc8 {[%emt 0:01:44]} 24. d5 {[%emt 0:00:56]} cxd5 {[%emt 0:00:12]} 25. exd5 {[%emt 0:00:31]} exd5 {[%emt 0:00:10]} 26. cxd5 {[%emt 0:00:10]} Rd7 {[%emt 0:00:20]} 27. Rd1 {[%emt 0:00:19]} Bb7 {[%emt 0:00:28]} 28. Ne4 {[%emt 0:00:38]} Rad8 {[%emt 0:02:17]} 29. Nc3 {[%emt 0:01:24]} Kf8 {[%emt 0:01:19]} 30. Kf1 {[%emt 0:00:44]} Ke7 {[%emt 0:00:25]} 31. Ke2 {[%emt 0:01:40]} Kf6 {[%emt 0:02:00]} 32. Ke3 {[%emt 0:00:37]} Ke5 {[%emt 0:09:56]} 33. f4+ {[%emt 0:01:20]} Kf5 {[%emt 0:01:32]} 34. Kf3 {[%emt 0:00:29]} h5 {[%emt 0:02:39]} 35. Kf2 {[%emt 0:02:44]} Rd6 {[%emt 0:02:52]} 36. Re1 {[%emt 0:02:36]} f6 {[%emt 0:03:41]} 37. Re7 {[%emt 0:03:27]} R8d7 {[%emt 0:00:06]} 38. Rxd7 {[%emt 0:00:27]} Rxd7 {[%emt 0:00:05]} 39. Nd1 {[%emt 0:01:32]} Ke4 {[%emt 0:00:35]} 40. Nc3+ {[%emt 0:00:41]} Kd3 {[%emt 0:00:34]} 41. Na2 {[%emt 0:03:04]} Kc4 {[%emt 0:04:31]} 42. Ra4+ {[%emt 0:00:46]} Kb3 {[%emt 0:00:27]} 43. Ra5 {[%emt 0:00:30]} Rxd5 {[%emt 0:00:22]} 44. Nc1+ {[%emt 0:01:18]} Kb4 {[%emt 0:00:38]} 45. Rxd5 {[%emt 0:00:34]} Bxd5 {[%emt 0:00:06]} 46. Nd3+ {[%emt 0:00:14]} Kc4 {[%emt 0:00:26]} 47. Nc1 {[%emt 0:00:35]} a5 {[%emt 0:00:35]} 48. Kf1 {[%emt 0:00:28]} a4 {[%emt 0:00:32]} 49. Ke2 {[%emt 0:00:14]} Kc3 {[%emt 0:00:10]} 50. Ke3 {[%emt 0:00:27]} Bc4 {[%emt 0:00:37]} 51. Ke4 {[%emt 0:00:29]} Kc2 {[%emt 0:00:43]} 52. Kf5 {[%emt 0:00:25]} Kxc1 {[%emt 0:00:14]} 53. Kg6 {[%emt 0:00:08]} a3 {[%emt 0:00:09]} 54. Kxg7 {[%emt 0:00:10]} a2 {[%emt 0:00:04]} 55. Kxf6 {[%emt 0:00:26]} a1=Q+ {[%emt 0:00:06]} 56. Kg5 {[%emt 0:00:14]} Qg7+ {[%emt 0:00:14]} 57. Kxh5 {[%emt 0:00:17]} Be2+ {[%emt 0:00:11]} 58. Kh4 {[%emt 0:00:12]} Qg4# {[%emt 0:00:07]} 0-1

[Event "Hungarian Youth-ch II 2024"]
[Site "Szolnok"]
[Date "2024.04.04"]
[Round "6.4"]
[White "Hangyal, Anna"]
[Black "Miko, Biborka"]
[Result "1/2-1/2"]
[ECO "B90"]
[WhiteElo "1719"]
[BlackElo "1549"]
[Annotator "NA RC"]
[PlyCount "115"]
[EventDate "2024.03.31"]
[EventType "swiss"]
[EventCountry "HUN"]
[SourceTitle "playchess.com"]
[Source "ChessBase"]
[SourceQuality "1"]
[TimeControl "5400+30"]

1. e4 {[%emt 0:00:03]} c5 {[%emt 0:00:05]} 2. Nf3 {[%emt 0:00:05]} d6 {[%emt 0:00:08]} 3. Nc3 {[%emt 0:00:04]} a6 {[%emt 0:00:53]} 4. d4 {[%emt 0:00:18]} cxd4 {[%emt 0:00:09]} 5. Nxd4 {[%emt 0:00:06]} Nf6 {[%emt 0:00:13]} 6. Be3 {[%emt 0:01:37]} e5 {[%emt 0:00:11]} 7. Nb3 {[%emt 0:00:59]} Be6 {[%emt 0:00:24]} 8. Bd3 {[%emt 0:04:33]} Be7 {[%emt 0:01:33]} 9. O-O {[%emt 0:00:31]} Nbd7 {[%emt 0:04:04]} 10. Qd2 {[%emt 0:04:01]} Ng4 {[%emt 0:02:06]} 11. Nd5 {[%emt 0:03:59]} Bxd5 {[%emt 0:03:13]} 12. exd5 {[%emt 0:00:08]} Nxe3 {[%emt 0:00:13]} 13. fxe3 {[%emt 0:00:40]} O-O {[%emt 0:01:28]} 14. Rf3 {[%emt 0:00:49]} Bg5 {[%emt 0:07:47]} 15. Qb4 {[%emt 0:02:24]} f5 {[%emt 0:08:28]} 16. Bxf5 {[%emt 0:06:02]} Bxe3+ {[%emt 0:01:33]} 17. Rxe3 {[%emt 0:00:18]} Rxf5 {[%emt 0:00:07]} 18. Qxd6 {[%emt 0:00:33]} Qg5 {[%emt 0:03:02]} 19. Rg3 {[%emt 0:01:03]} Qd8 {[%emt 0:03:37]} 20. Qe6+ {[%emt 0:00:28]} Rf7 {[%emt 0:00:37]} 21. Rf1 {[%emt 0:01:04]} Qb6+ {[%emt 0:00:46]} 22. Qxb6 {[%emt 0:00:41]} Nxb6 {[%emt 0:00:26]} 23. Rxf7 {[%emt 0:01:47]} Kxf7 {[%emt 0:00:07]} 24. Rd3 {[%emt 0:00:18]} Rc8 {[%emt 0:03:17]} 25. d6 {[%emt 0:03:32]} Ke6 {[%emt 0:02:52]} 26. c3 {[%emt 0:00:14]} Nd7 {[%emt 0:01:54]} 27. Nd2 {[%emt 0:05:50]} Nc5 {[%emt 0:02:10]} 28. Rg3 {[%emt 0:01:28]} Kxd6 {[%emt 0:02:38]} 29. Rxg7 {[%emt 0:00:10]} h5 {[%emt 0:02:17]} 30. Nc4+ {[%emt 0:00:50]} Ke6 {[%emt 0:01:03]} 31. Rh7 {[%emt 0:04:02]} Na4 {[%emt 0:01:11]} 32. b3 {[%emt 0:01:01]} Nxc3 {[%emt 0:00:09]} 33. Rh6+ {[%emt 0:00:14]} Ke7 {[%emt 0:00:56]} 34. Rxh5 {[%emt 0:00:45]} Rf8 {[%emt 0:00:53]} 35. Rxe5+ {[%emt 0:00:20]} Kd7 {[%emt 0:00:31]} 36. a4 {[%emt 0:00:37]} b5 {[%emt 0:00:42]} 37. axb5 {[%emt 0:01:13]} axb5 {[%emt 0:00:07]} 38. Re3 {[%emt 0:00:11]} bxc4 {[%emt 0:00:40]} 39. Rxc3 {[%emt 0:00:10]} cxb3 {[%emt 0:00:09]} 40. Rxb3 {[%emt 0:00:05]} Ke6 {[%emt 0:00:48]} 41. h4 {[%emt 0:00:11]} Ra8 {[%emt 0:00:22]} 42. Kh2 {[%emt 0:00:13]} Ra5 {[%emt 0:00:38]} 43. Kh3 {[%emt 0:00:13]} Kf6 {[%emt 0:00:39]} 44. g4 {[%emt 0:00:14]} Kg6 {[%emt 0:01:25]} 45. Rb6+ {[%emt 0:00:07]} Kh7 {[%emt 0:00:19]} 46. h5 {[%emt 0:00:12]} Ra3+ {[%emt 0:00:17]} 47. Kh4 {[%emt 0:00:07]} Ra4 {[%emt 0:00:16]} 48. h6 {[%emt 0:00:18]} Ra1 {[%emt 0:01:01]} 49. Kh5 {[%emt 0:00:11]} Ra5+ {[%emt 0:00:55]} 50. g5 {[%emt 0:00:08]} Rc5 {[%emt 0:00:33]} 51. Rb7+ {[%emt 0:00:42]} Kh8 {[%emt 0:00:11]} 52. Rf7 {[%emt 0:00:09]} Kg8 {[%emt 0:00:45]} 53. Kg6 {[%emt 0:00:10]} Rxg5+ {[%emt 0:00:56]} 54. Kf6 {[%emt 0:01:27]} Rf5+ {[%emt 0:00:20]} 55. Kxf5 {[%emt 0:00:48]} Kxf7 {[%emt 0:00:08]} 56. Kg5 {[%emt 0:01:18]} Kg8 {[%emt 0:00:15]} 57. Kg6 {[%emt 0:00:08]} Kh8 {[%emt 0:00:06]} 58. h7 {[%emt 0:00:10]} 1/2-1/2

[Event "Hungarian Youth-ch II 2024"]
[Site "Szolnok"]
[Date "2024.04.04"]
[Round "6.6"]
[White "Wang, Luomeng"]
[Black "Medvegy, Maria"]
[Result "1-0"]
[ECO "D30"]
[WhiteElo "1797"]
[BlackElo "1474"]
[Annotator "NA RC"]
[PlyCount "91"]
[EventDate "2024.03.31"]
[EventType "swiss"]
[EventCountry "HUN"]
[SourceTitle "playchess.com"]
[Source "ChessBase"]
[SourceQuality "1"]
[TimeControl "5400+30"]

1. d4 {[%emt 0:00:03]} d5 {[%emt 0:00:06]} 2. c4 {[%emt 0:00:08]} e6 {[%emt 0:00:06]} 3. Nf3 {[%emt 0:00:09]} h6 {[%emt 0:00:32]} 4. g3 {[%emt 0:00:55]} Nf6 {[%emt 0:00:30]} 5. Bg2 {[%emt 0:00:41]} Bd6 {[%emt 0:01:09]} 6. O-O {[%emt 0:00:43]} c6 {[%emt 0:01:15]} 7. Qc2 {[%emt 0:02:28]} O-O {[%emt 0:01:35]} 8. b3 {[%emt 0:01:26]} Qe7 {[%emt 0:01:42]} 9. Bb2 {[%emt 0:02:50]} c5 {[%emt 0:04:10]} 10. cxd5 {[%emt 0:04:52]} exd5 {[%emt 0:03:18]} 11. dxc5 {[%emt 0:01:18]} Bxc5 {[%emt 0:00:35]} 12. Nc3 {[%emt 0:00:36]} Nc6 {[%emt 0:05:20]} 13. a3 {[%emt 0:02:52]} Be6 {[%emt 0:02:02]} 14. b4 {[%emt 0:03:14]} Bb6 {[%emt 0:01:10]} 15. Na4 {[%emt 0:02:51]} Bc7 {[%emt 0:01:02]} 16. Nc5 {[%emt 0:01:57]} b6 {[%emt 0:03:44]} 17. Nxe6 {[%emt 0:02:18]} Qxe6 {[%emt 0:02:43]} 18. Rac1 {[%emt 0:01:42]} Be5 {[%emt 0:03:57]} 19. Nxe5 {[%emt 0:03:17]} Nxe5 {[%emt 0:00:18]} 20. Bxe5 {[%emt 0:02:19]} Qxe5 {[%emt 0:00:29]} 21. Qd3 {[%emt 0:01:55]} Rfe8 {[%emt 0:03:30]} 22. Rc2 {[%emt 0:02:41]} a5 {[%emt 0:03:11]} 23. b5 {[%emt 0:02:37]} Rad8 {[%emt 0:03:05]} 24. Rfc1 {[%emt 0:02:28]} Ne4 {[%emt 0:03:14]} 25. Bxe4 {[%emt 0:11:57]} dxe4 {[%emt 0:02:08]} 26. Qb3 {[%emt 0:01:56]} Rd5 {[%emt 0:02:04]} 27. a4 {[%emt 0:02:54]} Rd4 {[%emt 0:01:49]} 28. Rc7 {[%emt 0:02:40]} Re7 {[%emt 0:03:12]} 29. Rc8+ {[%emt 0:04:20]} Kh7 {[%emt 0:01:57]} 30. R8c6 {[%emt 0:06:07]} Rb4 {[%emt 0:04:33]} 31. Qe3 {[%emt 0:03:07]} Rxa4 {[%emt 0:01:33]} 32. Qxb6 {[%emt 0:00:35]} Rb4 {[%emt 0:05:11]} 33. R6c5 {[%emt 0:01:52]} Qb2 {[%emt 0:05:34]} 34. Qxa5 {[%emt 0:01:21]} Rb7 {[%emt 0:01:43]} 35. R5c2 {[%emt 0:03:20]} Qb3 {[%emt 0:01:24]} 36. Qd8 {[%emt 0:00:51]} R4xb5 {[%emt 0:02:29]} 37. Rc8 {[%emt 0:00:39]} f6 {[%emt 0:04:14]} 38. Qh8+ {[%emt 0:00:18]} Kg6 {[%emt 0:00:31]} 39. Qe8+ {[%emt 0:00:05]} Qf7 {[%emt 0:00:48]} 40. Qxe4+ {[%emt 0:00:20]} f5 {[%emt 0:01:03]} 41. R1c6+ {[%emt 0:01:05]} Kh7 {[%emt 0:00:27]} 42. Qd4 {[%emt 0:00:46]} Rb1+ {[%emt 0:04:00]} 43. Kg2 {[%emt 0:00:45]} R7b4 {[%emt 0:00:56]} 44. Qd8 {[%emt 0:00:26]} Qf6 {[%emt 0:02:30]} 45. Rxf6 {[%emt 0:00:18]} gxf6 {[%emt 0:00:15]} 46. Qg8# {[%emt 0:00:05]} 1-0

[Event "Hungarian Youth-ch II 2024"]
[Site "Szolnok"]
[Date "2024.04.05"]
[Round "7.1"]
[White "Biro, Beata"]
[Black "Balazs, Szabina Zoe"]
[Result "1-0"]
[ECO "B23"]
[WhiteElo "1849"]
[BlackElo "1756"]
[Annotator "NA RC"]
[PlyCount "97"]
[EventDate "2024.03.31"]
[EventType "swiss"]
[EventCountry "HUN"]
[SourceTitle "playchess.com"]
[Source "ChessBase"]
[SourceQuality "1"]
[TimeControl "5400+30"]

1. e4 {[%emt 0:00:03]} c5 {[%emt 0:00:07]} 2. Nc3 {[%emt 0:00:05]} d6 {[%emt 0:00:13]} 3. d4 {[%emt 0:00:08]} cxd4 {[%emt 0:00:07]} 4. Qxd4 {[%emt 0:00:06]} Nc6 {[%emt 0:00:14]} 5. Qd2 {[%emt 0:00:07]} g6 {[%emt 0:00:50]} 6. b3 {[%emt 0:00:09] B23: Closed Sicilian: Lines without g3.} Bg7 {[%emt 0:00:28]} 7. Bb2 {[%emt 0:00:14]} Nf6 {[%emt 0:01:18]} 8. O-O-O {[%emt 0:01:33]} O-O {[%emt 0:04:33]} 9. f3 {[%emt 0:02:01]} Bd7 {[%emt 0:07:05]} 10. g4 {[%emt 0:01:48]} Rc8 {[%emt 0:01:12]} 11. h4 {[%emt 0:02:14]} Qa5 {[%emt 0:04:56]} (11... h5 $14 {should be considered.}) 12. Kb1 {[%emt 0:03:10]} (12. h5 $1 $16) 12... Nb4 {[%emt 0:07:21]} (12... h5 $14) 13. a3 {[%emt 0:05:08]} Na6 {[%emt 0:01:17]} 14. Nge2 {[%emt 0:04:21]} Qc7 {[%emt 0:07:01]} 15. h5 {[%emt 0:01:22]} b5 {[%emt 0:05:48]} 16. e5 {[%emt 0:01:45]} dxe5 {[%emt 0:14:30]} 17. g5 {[%emt 0:00:28]} Nxh5 {[%emt 0:00:24]} 18. Qxd7 {[%emt 0:00:09]} Rfd8 {[%emt 0:00:11]} 19. Qxc7 {[%emt 0:00:07]} Rxd1+ {[%emt 0:00:39]} 20. Nxd1 {[%emt 0:00:03]} Nxc7 {[%emt 0:00:18]} 21. Bh3 {[%emt 0:08:44]} Rd8 {[%emt 0:08:12]} 22. Ndc3 {[%emt 0:06:16]} f6 {[%emt 0:06:41]} 23. Bg4 {[%emt 0:08:15]} Nf4 {[%emt 0:02:12]} 24. Nxf4 {[%emt 0:00:07]} exf4 {[%emt 0:00:09]} 25. Re1 {[%emt 0:01:13]} Kf7 {[%emt 0:07:43]} 26. a4 {[%emt 0:06:30]} f5 {[%emt 0:03:14]} 27. Bh3 {[%emt 0:01:44]} bxa4 {[%emt 0:01:32]} 28. Nxa4 {[%emt 0:01:23]} Bxb2 {[%emt 0:00:07]} 29. Kxb2 {[%emt 0:00:27]} Ne6 {[%emt 0:00:25]} 30. Rg1 {[%emt 0:06:02]} Rd2 {[%emt 0:04:00]} 31. Bf1 {[%emt 0:07:32]} Rd1 {[%emt 0:00:13]} 32. Rh1 {[%emt 0:00:33]} Kg7 {[%emt 0:00:59]} 33. Nc3 {[%emt 0:00:48]} Re1 {[%emt 0:00:48]} 34. Bg2 {[%emt 0:02:14]} Rxh1 {[%emt 0:02:17]} 35. Bxh1 {[%emt 0:00:02]} Nxg5 {[%emt 0:00:41]} 36. Nb5 {[%emt 0:01:22]} e5 {[%emt 0:00:26]} 37. c4 {[%emt 0:05:24]} Kf6 {[%emt 0:01:42]} 38. c5 {[%emt 0:01:50]} Ke7 {[%emt 0:02:23]} 39. Nxa7 {[%emt 0:01:32]} Kd7 {[%emt 0:01:24]} 40. b4 {[%emt 0:00:12]} e4 {[%emt 0:01:37]} 41. b5 {[%emt 0:01:36]} Kc7 {[%emt 0:02:10]} 42. b6+ {[%emt 0:01:05]} Kb7 {[%emt 0:00:19]} 43. fxe4 {[%emt 0:01:01]} fxe4 {[%emt 0:00:10]} 44. Nb5 {[%emt 0:00:18]} f3 {[%emt 0:03:57]} 45. Nd6+ {[%emt 0:00:06]} Ka6 {[%emt 0:00:08]} 46. b7 {[%emt 0:00:55]} Ka7 {[%emt 0:00:03]} 47. c6 {[%emt 0:00:25]} Kb8 {[%emt 0:00:12]} 48. Nc4 {[%emt 0:01:48]} Nf7 {[%emt 0:00:46]} 49. Nb6 {[%emt 0:00:51]} 1-0

[Event "Hungarian Youth-ch II 2024"]
[Site "Szolnok"]
[Date "2024.04.05"]
[Round "7.2"]
[White "Hangyal, Dora"]
[Black "Farkas, Sara"]
[Result "0-1"]
[ECO "A11"]
[WhiteElo "1708"]
[BlackElo "1693"]
[Annotator "NA RC"]
[PlyCount "102"]
[EventDate "2024.03.31"]
[EventType "swiss"]
[EventCountry "HUN"]
[SourceTitle "playchess.com"]
[Source "ChessBase"]
[SourceQuality "1"]
[TimeControl "5400+30"]

1. c4 {[%emt 0:00:02]} c6 {[%emt 0:00:06]} 2. Nc3 {[%emt 0:00:08]} d5 {[%emt 0:00:06]} 3. d4 {[%emt 0:00:08]} dxc4 {[%emt 0:00:08]} 4. e3 {[%emt 0:00:08]} b5 {[%emt 0:00:10]} 5. a4 {[%emt 0:00:22]} b4 {[%emt 0:00:25]} 6. Ne4 {[%emt 0:00:25]} Qd5 {[%emt 0:07:07]} 7. Ng3 {[%emt 0:02:03]} Nf6 {[%emt 0:09:03]} 8. Qc2 {[%emt 0:01:16]} e6 {[%emt 0:04:41]} 9. Nf3 {[%emt 0:00:18]} Qd8 {[%emt 0:06:33]} 10. Bxc4 {[%emt 0:00:18]} Bd6 {[%emt 0:03:45]} 11. e4 {[%emt 0:05:18]} Bc7 {[%emt 0:04:03]} 12. Bg5 {[%emt 0:00:47]} h6 {[%emt 0:03:06]} 13. Bh4 {[%emt 0:07:24]} g5 {[%emt 0:06:42]} 14. Nxg5 {[%emt 0:00:26]} hxg5 {[%emt 0:00:37]} 15. Bxg5 {[%emt 0:00:08]} Bxg3 {[%emt 0:07:08]} 16. fxg3 {[%emt 0:00:11]} Qxd4 {[%emt 0:02:04]} 17. Rd1 {[%emt 0:00:09]} Qe5 {[%emt 0:06:25]} 18. Bxf6 {[%emt 0:02:54]} Qxf6 {[%emt 0:00:29]} 19. Qd2 {[%emt 0:00:21]} Qe7 {[%emt 0:03:33]} 20. Qd4 {[%emt 0:01:15]} e5 {[%emt 0:03:55]} 21. Qf2 {[%emt 0:00:15]} Be6 {[%emt 0:02:08]} 22. Bxe6 {[%emt 0:02:29]} Qxe6 {[%emt 0:00:26]} 23. Qc5 {[%emt 0:00:26]} Qe7 {[%emt 0:01:14]} 24. Rc1 {[%emt 0:02:19]} Qxc5 {[%emt 0:02:28]} 25. Rxc5 {[%emt 0:00:07]} Nd7 {[%emt 0:03:53]} 26. Rxc6 {[%emt 0:00:21]} Ke7 {[%emt 0:00:39]} 27. Rc4 {[%emt 0:00:50]} Rac8 {[%emt 0:00:34]} 28. Rxc8 {[%emt 0:00:20]} Rxc8 {[%emt 0:00:08]} 29. Kd2 {[%emt 0:00:17]} Nf6 {[%emt 0:02:24]} 30. Ke3 {[%emt 0:00:34]} Rc4 {[%emt 0:02:51]} 31. b3 {[%emt 0:01:35]} Rxe4+ {[%emt 0:00:45]} 32. Kf3 {[%emt 0:00:17]} Rd4 {[%emt 0:00:24]} 33. Re1 {[%emt 0:00:43]} Rd3+ {[%emt 0:02:12]} 34. Re3 {[%emt 0:00:23]} Rd5 {[%emt 0:02:02]} 35. g4 {[%emt 0:01:06]} Ke6 {[%emt 0:01:26]} 36. g5 {[%emt 0:00:30]} Nh7 {[%emt 0:01:06]} 37. h4 {[%emt 0:00:11]} Rd4 {[%emt 0:00:49]} 38. g3 {[%emt 0:00:55]} Kf5 {[%emt 0:01:09]} 39. g4+ {[%emt 0:06:53]} Rxg4 {[%emt 0:02:17]} 40. Rxe5+ {[%emt 0:00:08]} Kxe5 {[%emt 0:00:08]} 41. Kxg4 {[%emt 0:00:08]} Nf8 {[%emt 0:04:22]} 42. h5 {[%emt 0:01:12]} Ke4 {[%emt 0:00:48]} 43. Kg3 {[%emt 0:01:47]} Kf5 {[%emt 0:00:19]} 44. g6 {[%emt 0:00:16]} fxg6 {[%emt 0:00:53]} 45. hxg6 {[%emt 0:00:16]} Nxg6 {[%emt 0:00:08]} 46. Kf3 {[%emt 0:00:09]} Ke5 {[%emt 0:00:27]} 47. Ke3 {[%emt 0:00:16]} Kd5 {[%emt 0:00:10]} 48. Kd3 {[%emt 0:00:35]} Ne5+ {[%emt 0:00:32]} 49. Ke3 {[%emt 0:00:14]} a5 {[%emt 0:00:27]} 50. Ke2 {[%emt 0:00:31]} Kd4 {[%emt 0:00:19]} 51. Kd2 {[%emt 0:00:06]} Nd7 {[%emt 0:00:15]} 0-1

[Event "Hungarian Youth-ch II 2024"]
[Site "Szolnok"]
[Date "2024.04.05"]
[Round "7.3"]
[White "Kiss, Inez"]
[Black "Balogh, Gerda"]
[Result "1-0"]
[ECO "C84"]
[WhiteElo "1896"]
[BlackElo "1775"]
[Annotator "NA RC"]
[PlyCount "43"]
[EventDate "2024.03.31"]
[EventType "swiss"]
[EventCountry "HUN"]
[SourceTitle "playchess.com"]
[Source "ChessBase"]
[SourceQuality "1"]
[TimeControl "5400+30"]

1. e4 {[%emt 0:00:03]} e5 {[%emt 0:00:04]} 2. Nf3 {[%emt 0:00:07]} Nc6 {[%emt 0:00:04]} 3. Bb5 {[%emt 0:00:13]} a6 {[%emt 0:00:05]} 4. Ba4 {[%emt 0:00:47]} Nf6 {[%emt 0:00:06]} 5. O-O {[%emt 0:00:14]} Be7 {[%emt 0:00:06]} 6. d4 {[%emt 0:00:40]} exd4 {[%emt 0:15:21]} 7. e5 {[%emt 0:00:57]} Nd5 {[%emt 0:00:15] C84: Closed Ruy Lopez: Unusual White 6th moves.} 8. Bb3 {[%emt 0:09:42]} Nb6 $1 {[%emt 0:02:29]} 9. Nxd4 {[%emt 0:03:08]} (9. Re1 $11) 9... Nxe5 {[%emt 0:09:37]} 10. Re1 {[%emt 0:09:56]} Ng6 {[%emt 0:03:02]} 11. Nf5 {[%emt 0:07:49]} O-O {[%emt 0:00:47]} 12. Nxe7+ {[%emt 0:00:36]} Nxe7 {[%emt 0:00:11]} 13. Bg5 {[%emt 0:00:06]} Re8 {[%emt 0:00:17]} 14. Nc3 {[%emt 0:07:34]} c6 {[%emt 0:07:01]} 15. Qd6 {[%emt 0:02:22]} Kf8 {[%emt 0:07:24]} 16. Re3 {[%emt 0:08:51]} a5 {[%emt 0:05:13]} 17. Rae1 {[%emt 0:01:36]} a4 {[%emt 0:05:47]} 18. Rxe7 {[%emt 0:01:38]} Rxe7 {[%emt 0:01:09]} 19. Bxe7+ {[%emt 0:00:51]} Kg8 {[%emt 0:00:13]} 20. Bxd8 {[%emt 0:00:06]} h6 {[%emt 0:00:14]} 21. Qg6 {[%emt 0:00:48]} axb3 {[%emt 0:01:05]} 22. Re8# {[%emt 0:00:06]} 1-0